Workbook

Sheet Стр.1

Sheet Стр.2-3
A1: 2. Финансовые параметры деятельности учреждения
A2: 2.1. Показатели финансового состояния учреждения
A3: на "01" января 2017г.
A4: (последнюю отчетную дату)
A6: Наименование показателя | BU6: Сумма, рублей
B7: I. Нефинансовые активы, всего: | BU7: 212,710,343.90
B8: из них:
B9: 1.1. Общая балансовая стоимость недвижимого государственного имущества, всего | BU9: 191,266,702.09
B10: в том числе:
B11: 1.1.1. Стоимость недвижимого имущества, закрепленного собственником имущества за государственным учреждением на праве оперативного управления | BU11: 191,266,702.09
B12: 1.1.2. Стоимость недвижимого имущества, приобретенного государственным учреждением (подразделением) за счет выделенных собственником имущества учреждения средств | BU12: 0.00
B13: 1.1.3. Стоимость недвижимого имущества, приобретенного государственным учреждением (подразделением) за счет доходов, полученных от платной и иной приносящей доход деятельности | BU13: 0.00
B14: 1.1.4. Стоимость недвижимого имущества, переданного в аренду, безвозмездное пользование | BU14: 0.00
B15: 1.1.5. Остаточная стоимость недвижимого государственного имущества | BU15: 135,031,340.64
B16: 1.2. Общая балансовая стоимость движимого государственного имущества, всего | BU16: 21,443,641.81
B17: в том числе:
B18: 1.2.1. Общая балансовая стоимость особо ценного движимого имущества | BU18: 15,935,901.29
B19: 1.2.2. Стоимость иного движимого имущества, приобретенного государственным учреждением за счет доходов, полученных за счет бюджетных средств | BU19: 3,563,620.90
B20: 1.2.3. Стоимость движимого имущества, приобретенного учреждением за счет доходов, полученных от платной и иной приносящей доход деятельности | BU20: 1,944,119.62
B21: 1.2.4. Стоимость движимого имущества, приобретенного учреждением за счет средств обязательного медицинского страхования | BU21: 0.00
B22: 1.2.5. Остаточная стоимость особо ценного движимого имущества | BU22: 4,197,400.42
B23: II. Финансовые активы, всего
B24: из них:
B25: 2.1. Денежные средства учреждения, всего | BU25: 0.00
B26: в том числе:
B27: 2.1.1. Денежные средства учреждения на счетах | BU27: 0.00
B28: 2.1.2. Денежные средства учреждения, размещенные на депозиты в кредитной организации | BU28: 0.00
B29: 2.2. Иные финансовые инструменты | BU29: 0.00
B30: 2.3. Дебиторская задолженность по доходам, полученным за счет средств областного бюджета, всего | BU30: 0.00
B31: 2.4. Дебиторская задолженность по расходам, всего | BU31: 90,763.21
B32: в том числе:
B33: 2.4.1. Дебиторская задолженность по выданным авансам, полученным за счет средств областного бюджета | BU33: 90,763.21
B34: 2.4.2. Дебиторская задолженность по выданным авансам за счет доходов, полученных от платной и иной приносящей доход деятельности | BU34: 0.00
B35: 2.4.3. Дебиторская задолженность по выданным авансам за счет средств обязательного медицинского страхования | BU35: 0.00
B36: III. Обязательства, всего | BU36: 88,277.98
B37: из них:
B38: 3.1. Долговые обязательства | BU38: 0.00
B39: 3.2. Кредиторская задолженность: | BU39: 88,277.98
B40: в том числе:
B41: 3.2.1. Кредиторская задолженность по принятым обязательствам за счет средств областного бюджета, всего: | BU41: 71,344.22
B42: в том числе:
B43: по оплате труда | BU43: 0.00
B44: по начислениям на выплаты по оплате труда | BU44: 0.00
B45: по социальным и иным выплатам населению | BU45: 30,783.00
B46: по расходам на закупку товаров, работ, услуг | BU46: 40,561.22
B47: по уплате налогов, сборов и иных платежей | BU47: 0.00
B48: по прочим расходам
B49: 3.2.2. Кредиторская задолженность по принятым обязательствам за счет доходов, полученных от платной и иной приносящей доход деятельности, всего: | BU49: 16,933.76
B50: в том числе:
B51: по оплате труда | BU51: 0.00
B52: по начислениям на выплаты по оплате труда | BU52: 0.00
B53: по социальным и иным выплатам населению | BU53: 1,248.00
B54: по расходам на закупку товаров, работ, услуг | BU54: 13,385.76
B55: по уплате налогов, сборов и иных платежей | BU55: 0.00
B56: по прочим расходам | BU56: 2,300.00
B57: 3.2.3. Кредиторская задолженность по принятым обязательствам за счет средств обязательного медицинского страхования, всего: | BU57: 0.00
B58: в том числе:
B59: по оплате труда | BU59: 0.00
B60: по начислениям на выплаты по оплате труда | BU60: 0.00
B61: по социальным и иным выплатам населению | BU61: 0.00
B62: по расходам на закупку товаров, работ, услуг | BU62: 0.00
B63: по уплате налогов, сборов и иных платежей | BU63: 0.00
B64: по прочим расходам | BU64: 0.00
B65: 3.2.4. Просроченная кредиторская задолженность, всего | BU65: 0.00
B66: в том числе:
B67: по оплате труда | BU67: 0.00
B68: по начислениям на выплаты по оплате труда | BU68: 0.00
B69: по социальным и иным выплатам населению | BU69: 0.00
B70: по расходам на закупку товаров, работ, услуг | BU70: 0.00
B71: по уплате налогов, сборов и иных платежей | BU71: 0.00
B72: по прочим расходам | BU72: 0.00

Sheet Стр 4-5
A1: 2.2. Показатели по поступлениям и выплатам учреждения*
A2: на "01" января 2017г.
A4: Наименование показателя | B4: Код строки | C4: Код по бюджетной классификации РФ | D4: Объем финансового обеспечения, руб. (с точностью до двух знаков после запятой - 0,00)
D5: Всего | E5: в том числе:
E6: Субсидии на финансовое обеспечение выполнения государственного (муниципального) задания из федерального бюджета, бюджета субъекта Российской Федерации (местного бюджета) | F6: Субсидии на финансовое обеспечение выполнения государственного задания из бюджета Федерального фонда обязательного медицинского страхования | G6: Субсидии, предоставляемые в соответствии с абзацем вторым пункта 1 статьи 78.1 БК РФ | H6: Субсидии на осуществление капитальных вложений | I6: Средства обязательного медицинского страхования | J6: Поступления от оказания услуг (выполнения работ) на платной основе и от иной приносящей доход деятельности
J7: всего | K7: из них гранты
A8: 1 | B8: 2 | C8: 3 | D8: 4 | E8: 5 | F8: 5.1 | G8: 6 | H8: 7 | I8: 8 | J8: 9 | K8: 10
A9: Поступления от доходов, всего: | B9: 100 | C9: х | D9: =E9+G9+J9 -> 56,254,474.96 | E9: =E12 -> 45,663,100.00 | G9: =G25 -> 9,475,318.00 | J9: =J11+J12+J28+J20+J21+J22+J26 -> 1,116,056.96
A10: в том числе:
A11: Доходы от собственности | B11: 110 | C11: 804 0704 0000000000 120 120 | D11: =J11 -> 136,056.96 | E11: х | G11: х | H11: х | I11: х | J11: 136,056.96 | K11: х
A12: Доходы от оказания услуг, работ | B12: 120 | C12: 804 0704 0000000000 130 130 | D12: =E12 -> 45,663,100.00 | E12: 45,663,100.00 | G12: х | H12: х
A13: в том числе:
A14: Услуга № 1/работа | B14: 1201 | G14: х | H14: х
A15: Услуга № 2/работа | B15: 1202 | G15: х | H15: х
A16: Услуга № 3/работа | B16: 1203
A17: Услуга № 4/работа | B17: 1204
A18: Средства на уплату налогов, в качестве объекта налогообложения по которым признается имущество учреждения | B18: 1205
A19: Средства на содержание имущества учреждения, не используемого для оказания государственных услуг (выполнения работ) и для общехозяйственных нужд | B19: 1206
A20: Дополнительные платные услуги (общежитие) | B20: 1207 | C20: 804 0704 0000000000 130 130 | D20: =J20 -> 600,000.00 | J20: 600,000.00
A21: Дополнительные платные услуги (платное питание) | B21: 1208 | C21: 805 0704 0000000000 130 130 | D21: =J21 -> 300,000.00 | J21: 300,000.00
A22: Дополнительные платные услуги (КМЦ) | B22: 1209 | C22: 806 0704 0000000000 130 130 | D22: =J22 -> 30,000.00 | J22: 30,000.00
A23: Доходы от штрафов, пеней, иных сумм принудительного изъятия | B23: 130 | E23: х | G23: х | H23: х | I23: х | K23: х
A24: Безвозмездные поступления от наднациональных организаций, правительств иностранных государств, международных финансовых организаций | B24: 140 | E24: х | G24: х | H24: х | I24: х | K24: х
A25: Иные субсидии, предоставленные из бюджета | B25: 150 | C25: 806 0704 0000000000 180 180 | D25: =G25 -> 9,475,318.00 | E25: х | G25: 9,475,318.00 | I25: х | J25: х | K25: х
A26: Прочие доходы | B26: 160 | C26: 806 0704 0000000000 180 180 | D26: =J26 -> 50,000.00 | E26: х | G26: х | H26: х | I26: х | J26: 50,000.00
A28: Доходы от операций с активами | B28: 180 | C28: х | E28: х | G28: х | H28: х | I28: х | K28: х
A29: Выплаты по расходам, всего: | B29: 200 | C29: х | D29: =E29+G29+J29 -> 56,254,474.96 | E29: =E34+E35+E36+E39+E44+E45+E49+E50+E51+E52+E53+E54+E55+E57+E59 -> 45,663,100.00 | G29: =G36+G37+G40+G41+G42+G47+G53+G58+G59 -> 9,475,318.00 | J29: =J34+J35+J44+J45+J49+J50+J51+J52+J53+J54+J55+J56+J57+J58+J59 -> 1,116,056.96
A30: в том числе на:
A31: Выплаты персоналу всего: | B31: 210 | D31: =E31+G31+J31 -> 29,361,026.00 | E31: =E34+E35+E36 -> 29,361,026.00
A32: из них:
A33: оплата труда и начисления на выплаты по оплате труда | B33: 211 | D33: =E33+G33+J33 -> 29,321,026.00 | E33: =E34+E35 -> 29,321,026.00
A34: оплата труда | C34: 804 0704 0000000000 111 211 | D34: =E34+G34+J34 -> 22,654,990.00 | E34: 22,519,990.00 | J34: 135,000.00
A35: начисления на выплаты по оплате труда | C35: 804 0704 0000000000 119 213 | D35: =E35+G35+J35 -> 6,841,806.00 | E35: 6,801,036.00 | J35: 40,770.00
A36: иные выплаты (командировочные расходы) | C36: 804 0704 0000000000 112 212 | D36: 67,600.00 | E36: 40,000.00 | G36: 27,600.00
A37: иные выплаты (оплата льготного проезда) | C37: 804 0704 0000000000 112 212 | D37: =E37+G37+J37 -> 543,305.00 | G37: 543,305.00
A38: Социальные и иные выплаты населению, всего | B38: 220 | D38: =D39+D40+D41+D42 -> 1,763,506.36
A39: из них: пособие работникам по сокращению штата | C39: 804 0704 0000000000 321 262 | D39: =E39+G39+J39 -> 57,426.36 | E39: 57,426.36
A40: компенсация детям-сиротам | C40: 804 0704 0000000000 321 262 | D40: =E40+G40+J40 -> 1,300,000.00 | G40: 1,300,000.00
A41: компенсация ТЖС | C41: 804 0704 0000000000 321 262 | D41: =E41+G41+J41 -> 200,000.00 | G41: 200,000.00
A42: отдых и оздоровление детей-сирот | C42: 804 0704 0000000000 323 262 | D42: 206,080.00 | G42: 206,080.00
A43: Уплату налогов, сборов и иных платежей, всего | B43: 230 | D43: =E43+G43+J43 -> 3,075,120.00 | E43: =E44+E45 -> 3,025,120.00 | J43: =J45 -> 50,000.00
A44: из них: имущественный, земельный налоги | C44: 804 0704 0000000000 851 290 | D44: 3,025,120.00 | E44: =1873000+1152120 -> 3,025,120.00
C45: 804 0704 0000000000 853 290 | D45: 50,000.00 | J45: 50,000.00
A46: Безвозмездные перечисления организациям | B46: 240
A47: Прочие расходы (кроме расходов на закупку товаров, работ, услуг) | B47: 250 | C47: 804 0704 0000000000 340 290 | D47: 2,296,100.00 | G47: 2,296,100.00
A48: Расходы на закупку товаров, работ, услуг, всего | B48: 260 | D48: =D49+D50+D51+D52+D53+D54+D55+D57+D56+D58+D59 -> 19,012,047.60
A49: Услуги связи | C49: 804 0704 0000000000 244 221 | D49: 160,000.00 | E49: 160,000.00
A50: Транспортные услуги | C50: 804 0704 0000000000 244 222 | D50: 0.00 | E50: 0.00
A51: Коммунальные услуги | C51: 804 0704 0000000000 244 223 | D51: 8,775,621.96 | E51: 8,515,335.00 | J51: 260,286.96
A52: Арендная плата за пользование имуществом | C52: 804 0704 0000000000 244 224 | D52: 0.00 | E52: 0.00
A53: Работы, услуги по содержанию имущества | C53: 804 0704 0000000000 244 225 | D53: 3,298,801.50 | E53: 1,941,256.50 | G53: 1,207,545.00 | J53: 150,000.00
A54: Прочие работы, услуги | C54: 804 0704 0000000000 244 226 | D54: 1,123,374.94 | E54: 923,374.94 | J54: 200,000.00
A55: Увеличение стоимости основных средств | C55: 804 0704 0000000000 244 310 | D55: 600,000.00 | E55: 600,000.00
A56: Увеличение стоимости нематериальных активов | C56: 804 0704 0000000000 244 320 | D56: 0.00
A57: Увеличение стоимости материальных запасов | C57: 804 0704 0000000000 244 340 | D57: 1,359,561.20 | E57: =520050+559511.2 -> 1,079,561.20 | J57: 280,000.00
A58: Увеличение стоимости материальных запасов (сироты) | C58: 804 0704 0000000000 323 340 | D58: 1,620,208.00 | G58: 1,620,208.00
A59: Увеличение стоимости материальных запасов (ТЖС) | C59: 804 0704 0000000000 323 340 | D59: 2,074,480.00 | G59: 2,074,480.00
A60: Поступления финансовых активов, всего: | B60: 300 | C60: х
A61: из них:
A62: Увеличение остатков средств | B62: 310
A63: Прочие поступления | B63: 320
A64: Выбытие финансовых активов, всего | B64: 400
A65: из них:
A66: Уменьшение остатков средств | B66: 410
A67: Прочие выбытия | B67: 420
A68: Остаток средств на начало года | B68: 500 | C68: х | E68: 0.00 | G68: 0.00 | J68: 0.00
A69: Остаток средств на конец года | B69: 600 | C69: х | E69: =E9-E34-E35-E36-E39-E44-E45-E49-E50-E51-E52-E53-E54-E55-E56-E59-E57 -> 0.00 | G69: =G9-G36-G37-G40-G41-G42-G47-G53-G58-G59 -> 0.00 | J69: =J9-J34-J35-J45-J51-J53-J54-J57 -> 0.00
A71: * Заполняется в соответствии с приказом Минфина России от 28.07.2010 № 81н "О требованиях к плану финансово-хозяйственной деятельности государственного (муниципального) учреждения" (в редакции приказа от 29.08.2016 № 142н)

Sheet Стр.6
A1: 2.2.1. Показатели выплат по расходам на закупку товаров, работ, услуг учреждения*
A2: на "01" января 2017 г.
A4: Наименование показателя | B4: Код строки | C4: Год начала закупки | D4: Сумма выплат по расходам на закупку товаров, работ и услуг, руб. (с точностью до двух знаков после запятой - 0,00
D5: Всего на закупки | G5: в том числе:
G6: в соответствии с Федеральным законом от 5 апреля 2013 г. № 44-ФЗ "О контрактной системе в сфере закупок товаров, работ, услуг для обеспечения государственных и муниципальных нужд" | J6: в соответствии с Федеральным законом от 18 июля 2011 г. № 223-ФЗ "О закупках товаров, работ, услуг отдельными видами юридических лиц"
D7: на 20__г. очередной финансовый год | E7: на 20__г. 1-ый год планового периода | F7: на 20__г. 2-ой год планового периода | G7: на 20__г. очередной финансовый год | H7: на 20__г. 1-ый год планового периода | I7: на 20__г. 2-ой год планового периода | J7: на 20__г. очередной финансовый год | K7: на 20__г. 1-ый год планового периода | L7: на 20__г. 2-ой год планового периода
A8: 1 | B8: 2 | C8: 3 | D8: 4 | E8: 5 | F8: 6 | G8: 7 | H8: 8 | I8: 9 | J8: 10 | K8: 11 | L8: 12
A9: Выплаты по расходам на закупку товаров, работ, услуг всего: | B9: 0001 | C9: х
A10: в том числе:
A11: на оплату контрактов заключенных до начала очередного финансового года: | B11: 1001 | C11: х
A13: на закупку товаров работ, услуг по году начала закупки: | B13: 2001
A15: * Заполняется в соответствии с приказом Минфина России от 28.07.2010 № 81н "О требованиях к плану финансово-хозяйственной деятельности государственного (муниципального) учреждения" (в редакции приказа от от 29.08.2016 № 142н)

Sheet Стр 7
A1: 2.3. Сведения о средствах, поступающих во временное распоряжение учреждения*
A2: на "01" января 2017 г.
A3: (очередной финансовый год)
A5: Наименование показателя | B5: Код строки | C5: Сумма (руб., с точностью до двух знаков после запятой - 0,00)
A6: 1 | B6: 2 | C6: 3
A7: Остаток средств на начало года | B7: 010 | C7: 0.00
A8: Остаток средств на конец года | B8: 020 | C8: 0.00
A9: Поступление | B9: 030 | C9: 0.00
A11: Выбытие | B11: 040 | C11: 0.00
A15: 2.4. Справочная информация
A17: Наименование показателя | B17: Код строки | C17: Сумма, рублей
A18: 1 | B18: 2 | C18: 3
A19: Объем публичных обязательств, всего: | B19: 010 | C19: 0.00
A20: Объем бюджетных инвестиций (в части переданных полномочий государственного (муниципального) заказчика в соответствии с Бюджетным кодексом Российской Федерации), всего: | B20: 020 | C20: 0.00
A21: Объем средств, поступивших во временное распоряжение, всего: | B21: 030 | C21: 0.00
A22: * Заполняется в соответствии с приказом Минфина России от 28.07.2010 № 81н "О требованиях к плану финансово-хозяйственной деятельности государственного (муниципального) учреждения" (в редакции приказа от 29.08.2015 № 142н)

Sheet стр 8-10
A1: 3. Сведения и показатели об использовании ресурсов учреждения
A2: на "01" января 2017 г.
A4: Наименование показателя | B4: Единицы измерения | C4: за 2016 г. отчетный финансовый год | D4: за 2017 г. текущий финансовый год | E4: на 2018 г. очередной финансовый год | F4: на 2018 г. 1-ый год планового периода | G4: на 2019 г. 2-ой год планового периода
A5: 1 | B5: 2 | C5: 3 | D5: 4 | E5: 5 | F5: 6 | G5: 7
A6: 1. Сведения об уровне оплаты труда работников учреждения | B6: х | C6: х | D6: х | E6: х | F6: х | G6: х
A7: 1.1. Фонд оплаты труда, всего | B7: тыс. руб. | C7: 24276 | D7: 22650 | E7: 22650 | F7: 22650 | G7: 22650
A8: из них: выплаты стимулирующего характера | B8: тыс. руб. | C8: 5881.7 | D8: 5488 | E8: 5488 | F8: 5488 | G8: 5488
A9: в том числе:
A10: 1.1.1.Фонд оплаты труда руководителей учреждения и их заместителей | B10: тыс. руб. | C10: 3970.6 | D10: 3148.8 | E10: 3148.8 | F10: 3148.8 | G10: 3148.8
A11: из них: выплаты стимулирующего характера | B11: тыс. руб. | C11: 1176.5 | D11: 960 | E11: 960 | F11: 960 | G11: 960
A12: 1.1.2. Фонд оплаты труда прочих работников учреждения | B12: тыс. руб. | C12: 10696.3 | D12: 9723.7 | E12: 9723.7 | F12: 9723.7 | G12: 9723.7
A13: из них: выплаты стимулирующего характера | B13: тыс. руб. | C13: 2663.9 | D13: 2467 | E13: 2467 | F13: 2467 | G13: 2467
A14: 1.2. Фонд оплаты труда, отдельных категорий работников бюджетной сферы, повышение оплаты труда которых предусмотрено указами Президента РФ, всего | B14: тыс. руб. | C14: 9609.1 | D14: 9777.5 | E14: 9777.5 | F14: 9777.5 | G14: 9777.5
A15: в том числе по категориям работников:
B16: тыс. руб.
A17: 1.3. Среднесписочная численность работников учреждения | B17: чел. | C17: 58 | D17: 58 | E17: 58 | F17: 58 | G17: 58
A18: в том числе:
A19: 1.3.1. Среднесписочная численность руководителей учреждения и их заместителей | B19: чел. | C19: 4 | D19: 3 | E19: 3 | F19: 3 | G19: 3
A20: 1.3.2. Среднесписочная численность прочих работников учреждения | B20: чел. | C20: 36 | D20: 36 | E20: 36 | F20: 36 | G20: 36
A21: 1.4. Среднесписочная численность работников учреждения с которыми заключены эффективные контракты | B21: чел. | C21: 58 | D21: 58 | E21: 58 | F21: 58 | G21: 58
A22: в том числе:
A23: 1.4.1. Среднесписочная численность руководителей учреждения и их заместителей с которыми заключены эффективные контракты | B23: чел. | C23: 4 | D23: 3 | E23: 3 | F23: 3 | G23: 3
A24: 1.4.2. Среднесписочная численность прочих работников учреждения с которыми заключены эффективные контракты | B24: чел. | C24: 36 | D24: 36 | E24: 36 | F24: 36 | G24: 36
A25: 1.5. Среднесписочная численность, отдельных категорий работников бюджетной сферы, повышение оплаты труда которых предусмотрено указами Президента РФ, всего | B25: чел. | C25: 18 | D25: 19 | E25: 19 | F25: 19 | G25: 19
A26: в том числе по категориям работников:
A27: 1.6. Средняя заработная плата, необходимая для реализации указов Президента РФ, предусматривающих повышение оплаты труда отдельных категорий работников бюджетной сферы | B27: руб. | C27: 44000 | D27: 44000 | E27: 44000 | F27: 44000 | G27: 44000
A28: 1.7. Средняя заработная плата, сложившаяся/прогнозируемая в отчетном периоде | B28: руб. | C28: х | D28: х | E28: х | F28: х | G28: х
A29: в том числе по категориям работников, повышение оплаты труда которых предусмотрено указами Президента РФ: | C29: 43757 | D29: 42884 | E29: 42884 | F29: 42884 | G29: 42884
B30: руб.
A31: 1.8. Отношение средней заработной платы руководителей учреждения и их заместителей к средней заработной плате работников учреждения | B31: % | C31: 237 | D31: 269 | E31: 269 | F31: 269 | G31: 269
A32: 1.9. Отношение средней заработной платы, сложившейся/прогнозируемой в отчетном периоде к средней заработной плате, необходимой для реализации указов Президента РФ | B32: % | C32: х | D32: х | E32: х | F32: х | G32: х
A33: в том числе по категориям работников, повышение оплаты труда которых предусмотрено указами Президента РФ: | C33: 99 | D33: 97 | E33: 97 | F33: 97 | G33: 97
B34: %
A35: 2. Сведения об использовании имущества учреждения | B35: х | C35: х | D35: х | E35: х | F35: х | G35: х
A36: 2.1. Общая площадь объектов недвижимого имущества, закрепленная за учреждением | B36: м² | C36: 14983.1 | D36: 10533.7 | E36: 10533.7 | F36: 10533.7 | G36: 10533.7
A37: в том числе:
A38: 2.1.1. Площадь недвижимого имущества в безвозмездном пользовании, всего | B38: м²
A39: 2.1.2.Площадь недвижимого имущества в безвозмездном пользовании, не используемая для выполнения государственного задания | B39: м²
A40: 2.1.3. Площадь недвижимого имущества, переданная в аренду | B40: м² | C40: 46 | D40: 46 | E40: 46 | F40: 46 | G40: 46
A41: 2.2. Затраты на содержание имущества учреждения | B41: тыс. руб.
A42: в том числе:
A43: 2.2.1. Затраты на содержание имущества учреждения, не используемого для выполнения государственного задания | B43: тыс. руб.
A44: 2.3. Коэффициент износа основных средств (отношение величины износа основных средств на конец отчетного периода к стоимости основных средств учреждения на конец отчетного периода) | B44: ед.
A45: 2.4. Коэффициент обновления основных средств (отношение стоимости основных средств поступивших за отчетный период к общей стоимости основных средств учреждения на конец отчетного периода) | B45: ед.
A46: 2.5. Коэффициенты ремонта зданий, характеризующие величину фактических расходов на капитальный ремонт зданий, приходящуюся на один рубль балансовой стоимости основных средств (в том числе за счет бюджетных средств) | B46: ед.
A47: в том числе:
B48: ед.
A49: 3. Показатели характеризующие объем и качество оказываемой услуги
A50: 3.1. Общее количество государственных услуг, оказываемых учреждением | B50: ед.
A51: в том числе:
A52: 3.1.1. Количество государственных услуг, в отношении которых нормативно установлены требования к качеству их оказания | B52: ед.
A53: 4. Показатели открытости и прозрачности деятельности
A54: 4.1. Обеспечено размещение (актуализация) сведений об учреждении на официальном сайте в сети Интернет www.bus.gov.ru | B54: да-1/нет-0 | C54: 1 | D54: 1 | E54: 1 | F54: 1 | G54: 1
A55: 4.2. Обеспечено размещение в сети Интернет информации о результатах деятельности учреждения за отчетный год | B55: да-1/нет-1 | C55: 1 | D55: 1 | E55: 1 | F55: 1 | G55: 1

Sheet стр.11
A1: 4. Перечень мероприятий по повышению эффективности деятельности учреждения
A2: на "01" января 2017 г.
A4: Наименование мероприятия | B4: Сроки проведения | C4: Ожидаемый результат реализации | E4: Затраты, необходимые на проведение мероприятия, тыс. руб
A5: 1. Повышение эффективности управления и кадрового потенциала учреждения
A7: 2. Повышение эффективности управления государственной собственностью
A9: 3. Повышение качества предоставления государственных услуг
A11: 4. Направления оптимизации расходов учреждения
A13: Итого: | B13: х | C13: х
A16: Руководитель учреждения | E16: О.И. Макашина
C17: (подпись) | E17: (расшифровка подписи)
A18: Руководитель финансово-экономической | E18: О.А. Федорова
A19: службы учреждения | C19: (подпись) | E19: (расшифровка подписи)
A20: тел. (81532) 74763
A21: на "01" января 2017 г.

Sheet стр 12
BL2: УТВЕРЖДАЮ
BL3: Заместитель министра образования и науки Мурманской области
BL4: (наименование должности лица, утверждающего документ; наименование органа,
BL5: Министерство образования и науки Мурманской области
BL6: осуществляющего функции и полномочия учредителя (учреждения))
DU7: Е.И. Панькова
BL8: (подпись) | DU8: (расшифровка подписи)
BL9: " | BM9: 25 | BR9: " | BT9: января | CQ9: 20 | CU9: 17 | CX9: г.
A11: СВЕДЕНИЯ
A12: ОБ ОПЕРАЦИЯХ С ЦЕЛЕВЫМИ СУБСИДИЯМИ, ПРЕДОСТАВЛЕННЫМИ ГОСУДАРСТВЕННОМУ (МУНИЦИПАЛЬНОМУ) УЧРЕЖДЕНИЮ НА 20__17__г.
EV13: КОДЫ
ET14: Форма по ОКУД | EV14: 0501016
AM15: от " | AN15: 25 | AS15: " | AU15: января | BR15: 20 | BV15: 17 | BY15: г. | ET15: Дата | EV15: 25.01.2017
A16: Государственное | AK16: Государственное автономное профессиональное образовательное учреждение Мурманской области "Полярнозоринский энергетичекий колледж" | EV16: 02516481
A17: учреждение | ET17: по ОКПО
AK19: ИНН/КПП | AU19: 5117100038 / 511701001 | ET19: Дата представления предыдущих Сведений
A21: Наименование бюджета | AK21: Бюджет Мурманской области | ET21: по ОКТМО | EV21: 4700000
A22: Наименование органа, осуществляющего | AK22: Министерство образования и науки Мурманской области
A23: функции и полномочия учредителя | ET23: Глава по БК | EV23: 804
A24: Наименование органа, осуществляющего | AK24: Управление Федерального казначейства по Мурманской области | EV24: 27946739
A25: ведение лицевого счета | ET25: по ОКПО
A26: Единица измерения: руб. (с точностью до второго десятичного знака) | ET26: по ОКЕИ | EV26: 383
ET27: по ОКВ
L28: (наименование иностранной валюты)
EH29: Остаток средств на начало года
A31: Наименование субсидии | AA31: Код субсидии | AK31: Код по бюджетной классификации Российской Федерации | AU31: Код объекта ФАИП | BE31: Разрешенный к использованию | CJ31: Суммы возврата дебиторской задолженности прошлых лет | DL31: Планируемые
BE32: остаток субсидии прошлых лет
BW33: на начало 20 | CA33: г.
BE35: код | BO35: сумма | CJ35: код | CX35: сумма | DL35: поступления | EJ35: выплаты
A36: 1 | AA36: 2 | AK36: 3 | AU36: 4 | BE36: 5 | BO36: 6 | CJ36: 7 | CX36: 8 | DL36: 9 | EJ36: 10
A37: Выплата стипендии обучающимся по очной форме обучения в учреждениях среднего профессионального образования | AA37: 0210100023 | AK37: 180 | DL37: =EJ38 -> 2,296,100.00
A38: Выплата стипендии обучающимся по очной форме обучения в учреждениях среднего профессионального образования | AA38: 0210100023 | AK38: 340 | EJ38: 2,296,100.00
A39: Отдых и оздоровление детей-сирот, детей, оставшихся без попечения родителей, обучающихся государственных областных профессиональных организаций | AA39: 0210100006 | AK39: 180 | DL39: =EJ40+EJ41 -> 233,680.00
A40: Отдых и оздоровление детей-сирот, детей, оставшихся без попечения родителей, обучающихся государственных областных профессиональных организаций | AA40: 0210100006 | AK40: 112 | EJ40: 27,600.00
A41: Отдых и оздоровление детей-сирот, детей, оставшихся без попечения родителей, обучающихся государственных областных профессиональных организаций | AA41: 0210100006 | AK41: 323 | EJ41: 206,080.00
A42: Обеспечение комплексной безопасности организаций образования | AA42: 0230200014 | AK42: 180 | DL42: =EJ43 -> 1,207,545.00
A43: Обеспечение комплексной безопасности организаций образования | AA43: 0230200014 | AK43: 244 | EJ43: 1,207,545.00
A44: Предоставление бесплатного питания отдельным категориям обучающихся учреждений среднего профессионального образования | AA44: 0230200024 | AK44: 180 | DL44: =EJ45+EJ46 -> 2,274,480.00
A45: Предоставление бесплатного питания отдельным категориям обучающихся учреждений среднего профессионального образования | AA45: 0230200024 | AK45: 321 | EJ45: 200,000.00
A46: Предоставление бесплатного питания отдельным категориям обучающихся учреждений среднего профессионального образования | AA46: 0230200024 | AK46: 323 | EJ46: 2,074,480.00
A47: Оплата стоимости проезда и провоза багажа к месту использования отпуска (отдыха) и обратно | AA47: 0240200016 | AK47: 180 | DL47: =EJ48 -> 543,305.00
A48: Оплата стоимости проезда и провоза багажа к месту использования отпуска (отдыха) и обратно | AA48: 0240200016 | AK48: 112 | EJ48: 543,305.00
A49: Содержание детей-сирот, детей, оставшихся без попечения родителей, лиц из их числа в государственных областных образовательных учреждениях профессионального образования | AA49: 0330200010 | AK49: 180 | DL49: =EJ50+EJ51 -> 2,920,208.00
A50: Содержание детей-сирот, детей, оставшихся без попечения родителей, лиц из их числа в государственных областных образовательных учреждениях профессионального образования | AA50: 0330200010 | AK50: 321 | EJ50: 1,300,000.00
A51: Содержание детей-сирот, детей, оставшихся без попечения родителей, лиц из их числа в государственных областных образовательных учреждениях профессионального образования | AA51: 0330200010 | AK51: 323 | EJ51: 1,620,208.00
BM52: Всего | CJ52: х | DL52: =DL37+DL49+DL39+DL42+DL44+DL47 -> 9,475,318.00 | EJ52: =EJ38+EJ50+EJ51+EJ40+EJ41+EJ43+EJ45+EJ46+EJ48 -> 9,475,318.00
ET54: Номер страницы | EV54: 3
A55: Руководитель | AD55: Макашина О.И. | ET55: Всего страниц | EV55: 3
N56: (подпись) | AD56: (расшифровка подписи)
A57: Руководитель финан- | BT57: ОТМЕТКА ОРГАНА, ОСУЩЕСТВЛЯЮЩЕГО ВЕДЕНИЕ ЛИЦЕВОГО СЧЕТА,
A58: сово-экономи- | BT58: О ПРИНЯТИИ НАСТОЯЩИХ СВЕДЕНИЙ
A59: ческой службы | AD59: Федорова О.А. | BU59: Ответственный
N60: (подпись) | AD60: (расшифровка подписи) | BU60: исполнитель
A61: Ответственный | CH61: (должность) | CV61: (подпись) | DF61: (расшифровка подписи) | DY61: (телефон)
A62: исполнитель | N62: Гл. бухгалтер | AK62: Федорова О.А. | BD62: (81532)74763 | BU62: " | CB62: " | DA62: 20 | DH62: г.
N63: (должность) | Z63: (подпись) | AK63: (расшифровка подписи) | BD63: (телефон)
A64: " | C64: 25 | H64: " | J64: января | AC64: 20 | AG64: 17 | AJ64: г.
A67: * Заполняется в порядке, установленном приказом Минфина России от 28.07.2010 № 81н "О требованиях к плану финансово-хозяйственной деятельности государственного (муниципального) учреждения" ( в редакции приказа от 24.09.2015 №140н)

Sheet 13
A1: Расчеты (обоснования) к плану финансово-хозяйственной деятельности государственного (муниципального) учреждения*
A3: 1. Расчеты (обоснования) выплат персоналу (строка 210)
A5: Код видов расходов | X5: 111
A7: Источник финансового обеспечения | AP7: 4 - Субсидия на выполнение государственного задания
A9: 1.1. Расчеты (обоснования) расходов на оплату труда
A11: № п/п | G11: Должность, группа должностей | Y11: Установленная численность, единиц | AO11: Среднемесячный размер оплаты труда на одного работника, руб. | DI11: Ежемесячная надбавка к должностному окладу, % | DY11: Районный коэффициент | EO11: Фонд оплаты труда в год, руб. (гр. 3 x гр. 4 x (1 + гр. 8 / 100) x гр. 9 x 12)
AO12: всего | BF12: в том числе:
BF13: по должностному окладу | BX13: по выплатам компенсационного характера | CQ13: по выплатам стимулирующего характера
A14: 1 | G14: 2 | Y14: 3 | AO14: 4 | BF14: 5 | BX14: 6 | CQ14: 7 | DI14: 8 | DY14: 9 | EO14: 10
A15: 1. | G15: Преподаватель | Y15: 1.5 | AO15: =BF15+BX15+CQ15 -> 31,951.06 | BF15: 15,042.87 | BX15: =(BF15+CQ15)*0.8 -> 14,200.47 | CQ15: =BF15*DI15/100 -> 2,707.72 | DI15: 18.00 | DY15: =(BF15+CQ15)*0.5 -> 8,875.29 | EO15: =(1*(AO15+DY15))*12 -> 489,916.19
Y16: 1.2 | AO16: =BF16+BX16+CQ16 -> 27,048.73 | BF16: 14,464.56 | BX16: =(BF16+CQ16)*0.7 -> 11,137.71 | CQ16: =BF16*DI16/100 -> 1,446.46 | DI16: 10.00 | DY16: =(BF16+CQ16)*0.5 -> 7,955.51 | EO16: 420,050.82
Y17: 1.4 | AO17: 29,464.46 | BF17: 13,990.72 | BX17: =(BF17+CQ17)*0.8 -> 13,095.31 | CQ17: 2,378.42 | DI17: 17.00 | DY17: 8,184.57 | EO17: 451,788.33
Y18: 1.4 | AO18: 31,796.47 | BF18: 15,098.04 | BX18: 14,131.77 | CQ18: 2,566.67 | DI18: 17.00 | DY18: 8,832.35 | EO18: 487,545.91
Y19: 1.2 | AO19: 18,163.47 | BF19: 9,173.47 | BX19: 8,072.65 | CQ19: 917.35 | DI19: 10.00 | DY19: 5,045.41 | EO19: 278,506.55
Y20: 1.1 | AO20: 21,447.86 | BF20: 10,184.17 | BX20: 9,532.38 | CQ20: 1,731.31 | DI20: 17.00 | DY20: 5,957.74 | EO20: 328,867.22
Y21: 1.4 | AO21: 30,205.35 | BF21: 14,342.52 | BX21: 13,424.60 | CQ21: 2,438.23 | DI21: 17.00 | DY21: 8,390.37 | EO21: 463,148.66
Y22: 1.3 | AO22: 22,678.59 | BF22: 10,768.56 | BX22: 10,079.37 | CQ22: 1,830.66 | DI22: 17.00 | DY22: 6,299.61 | EO22: 347,738.34
Y23: 1.5 | AO23: 32,292.33 | BF23: 15,333.49 | BX23: 14,352.15 | CQ23: 2,606.69 | DI23: 17.00 | DY23: 8,970.09 | EO23: 495,149.06
Y24: 1.5 | AO24: 33,825.29 | BF24: 16,061.39 | BX24: 15,033.46 | CQ24: 2,730.44 | DI24: 17.00 | DY24: 9,395.91 | EO24: 518,654.41
Y25: 1.1 | AO25: 25,876.28 | BF25: 13,068.83 | BX25: 11,500.57 | CQ25: 1,306.88 | DI25: 10.00 | DY25: 7,187.86 | EO25: 396,769.68
Y26: 1.4 | AO26: 33,291.31 | BF26: 15,807.84 | BX26: 14,796.14 | CQ26: 2,687.33 | DI26: 17.00 | DY26: 9,247.59 | EO26: 510,466.77
Y27: 1.4 | AO27: 29,756.18 | BF27: 14,129.24 | BX27: 13,224.97 | CQ27: 2,401.97 | DI27: 17.00 | DY27: 8,265.61 | EO27: 456,261.42
Y28: 1.7 | AO28: 29,451.13 | BF28: 13,984.39 | BX28: 13,089.39 | CQ28: 2,377.35 | DI28: 17.00 | DY28: 8,180.87 | EO28: 451,583.92
Y29: 1.9 | AO29: 36,902.72 | BF29: 17,374.16 | BX29: 16,401.21 | CQ29: 3,127.35 | DI29: 18.00 | DY29: 10,250.75 | EO29: 565,841.64
Y30: 1 | AO30: =BF30+BX30+CQ30 -> 21,854.47 | BF30: 10,289.30 | BX30: =(BF30+CQ30)*0.8 -> 9,713.10 | CQ30: =BF30*DI30/100 -> 1,852.07 | DI30: 18.00 | DY30: =(BF30+CQ30)*0.5 -> 6,070.69 | EO30: 335,101.92
Y31: 5 | AO31: 15,600.06 | BF31: 8,254.00 | BX31: 6,933.36 | CQ31: 412.70 | DI31: 5.00 | DY31: 4,333.35 | EO31: =(Y31*(AO31+DY31))*12 -> 1,196,004.60
Y32: =SUM(Y15:AN31) -> 27 | AO32: =SUM(AO15:BE31) -> 471,605.74 | BF32: =SUM(BF15:BW31) -> 227,367.55 | BX32: =SUM(BX15:CP31) -> 208,718.61 | CQ32: =SUM(CQ15:DH31) -> 35,519.59 | DY32: =SUM(DY15:EN31) -> 131,443.57 | EO32: =SUM(EO15:FE31) -> 8,193,395.43
A33: 2. | G33: Мастер производственного обучения | Y33: 1 | AO33: =BF33+BX33+CQ33 -> 33,336.41 | BF33: 7,706.00 | BX33: =(BF33+CQ33)*0.8 -> 14,816.18 | CQ33: =BF33*DI33/100+3878.83 -> 10,814.23 | DI33: 90.00 | DY33: =(BF33+CQ33)*0.5 -> 9,260.12 | EO33: =(Y33*(AO33+DY33))*12 -> 511,158.35
Y34: 1 | AO34: 22,044.33 | BF34: 6,603.00 | BX34: =(BF34+CQ34)*0.3 -> 5,087.15 | CQ34: =BF34*DI34/100+3090.88 -> 10,354.18 | DI34: 110.00 | DY34: 8,478.59 | EO34: 366,275.09
Y35: 1 | AO35: 33,127.70 | BF35: 6,538.00 | BX35: 14,723.42 | CQ35: =BF35*DI35/100+5982.08 -> 11,866.28 | DI35: 90.00 | DY35: 9,202.14 | EO35: 507,958.13
Y36: =SUM(Y33:AN35) -> 3 | AO36: =SUM(AO33:BE35) -> 88,508.45 | BF36: =SUM(BF33:BW35) -> 20,847.00 | BX36: =SUM(BX33:CP35) -> 34,626.76 | CQ36: =SUM(CQ33:DH35) -> 33,034.69 | DY36: =SUM(DY33:EN35) -> 26,940.85 | EO36: =SUM(EO33:FE35) -> 1,385,391.56
A37: 3. | G37: Заведующий УО | Y37: 1 | AO37: =BF37+BX37+CQ37 -> 22,145.40 | BF37: 8,202.00 | BX37: =(BF37+CQ37)*0.8 -> 9,842.40 | CQ37: =BF37*DI37/100 -> 4,101.00 | DI37: 50.00 | DY37: =(BF37+CQ37)*0.5 -> 6,151.50 | EO37: =(Y37*(AO37+DY37))*12 -> 339,562.80
A38: 4. | G38: Заведующий УВО | Y38: 1 | AO38: 26,932.50 | BF38: 9,975.00 | BX38: 11,970.00 | CQ38: =BF38*DI38/100 -> 4,987.50 | DI38: 50.00 | DY38: 7,481.25 | EO38: 412,965.00
A39: 5. | G39: Заведующий практикой | Y39: 1 | AO39: 22,928.40 | BF39: 8,492.00 | BX39: 10,190.40 | CQ39: 4,246.00 | DI39: 50.00 | DY39: 6,369.00 | EO39: 351,568.80
A40: 6. | G40: Социалный педагог | Y40: 1 | AO40: 16,921.08 | BF40: 8,546.00 | BX40: 7,520.48 | CQ40: 854.60 | DI40: 10.00 | DY40: 4,700.30 | EO40: 259,456.56
A41: 7. | G41: Педагог-библиотекарь | Y41: 1 | AO41: 20,225.70 | BF41: 10,215.00 | BX41: 8,989.20 | CQ41: 1,021.50 | DI41: 10.00 | DY41: 5,618.25 | EO41: 310,127.40
A42: 8. | G42: Педагог-психолог | Y42: 0.5 | AO42: 8,694.18 | BF42: 4,391.00 | BX42: 3,864.08 | CQ42: 439.10 | DI42: 10.00 | DY42: 2,415.05 | EO42: =(1*(AO42+DY42))*12 -> 133,310.76
Y43: =SUM(Y37:AN42) -> 5.5 | AO43: =SUM(AO37:BE42) -> 117,847.26 | BF43: =SUM(BF37:BW42) -> 49,821.00 | BX43: =SUM(BX37:CP42) -> 52,376.56 | CQ43: =SUM(CQ37:DH42) -> 15,649.70 | DY43: =SUM(DY37:EN42) -> 32,735.35 | EO43: =SUM(EO37:FE42) -> 1,806,991.32
A44: 9. | G44: Директор | Y44: 1 | AO44: =BF44+BX44+CQ44 -> 0.00 | BF44: 0.00 | BX44: =(BF44+CQ44)*0.8 -> 0.00 | CQ44: =BF44*DI44/100 -> 0.00 | DI44: 0.00 | DY44: =(BF44+CQ44)*0.5 -> 0.00 | EO44: =(Y44*(AO44+DY44))*12 -> 0.00
A45: 10. | G45: Зам. директора по ТО | Y45: 1 | AO45: =BF45+BX45+CQ45 -> 56,643.30 | BF45: 20,979.00 | BX45: =(BF45+CQ45)*0.8 -> 25,174.80 | CQ45: =BF45*DI45/100 -> 10,489.50 | DI45: 50.00 | DY45: =(BF45+CQ45)*0.5 -> 15,734.25 | EO45: =(Y45*(AO45+DY45))*12 -> 868,530.60
A46: 11. | G46: Зам. директора по УПР | Y46: 1 | AO46: 83,076.84 | BF46: 20,979.00 | BX46: 36,923.04 | CQ46: 25,174.80 | DI46: 120.00 | DY46: 23,076.90 | EO46: 1,273,844.88
A47: 12. | G47: Главный бухгалтер | Y47: 1 | AO47: 56,643.30 | BF47: 20,979.00 | BX47: 25,174.80 | CQ47: 10,489.50 | DI47: 50.00 | DY47: 15,734.25 | EO47: 868,530.60
Y48: =SUM(Y44:AN47) -> 4 | AO48: =SUM(AO44:BE47) -> 196,363.44 | BF48: =SUM(BF44:BW47) -> 62,937.00 | BX48: =SUM(BX44:CP47) -> 87,272.64 | CQ48: =SUM(CQ44:DH47) -> 46,153.80 | DY48: =SUM(DY44:EN47) -> 54,545.40 | EO48: =SUM(EO44:FE47) -> 3,010,906.08
A49: 13. | G49: Инженер по ОЭ и РЗ и С | Y49: 1 | AO49: =BF49+BX49+CQ49 -> 22,010.40 | BF49: 8,152.00 | BX49: =(BF49+CQ49)*0.8 -> 9,782.40 | CQ49: =BF49*DI49/100 -> 4,076.00 | DI49: 50.00 | DY49: =(BF49+CQ49)*0.5 -> 6,114.00 | EO49: =(Y49*(AO49+DY49))*12 -> 337,492.80
A50: 14. | G50: Специалист по ОТ | Y50: 1 | AO50: 15,370.74 | BF50: 7,763.00 | BX50: 6,831.44 | CQ50: 776.30 | DI50: 10.00 | DY50: 4,269.65 | EO50: 235,684.68
A51: 15. | G51: Юрисконсульт | Y51: 1 | AO51: 15,503.40 | BF51: 7,830.00 | BX51: 6,890.40 | CQ51: 783.00 | DI51: 10.00 | DY51: 4,306.50 | EO51: 237,718.80
A52: 16. | G52: Документовед | Y52: 1 | AO52: 20,960.10 | BF52: 7,763.00 | BX52: 9,315.60 | CQ52: 3,881.50 | DI52: 50.00 | DY52: 5,822.25 | EO52: 321,388.20
A53: 17. | G53: Специалист по кадрам | Y53: 0.5 | AO53: =BF53+BX53+CQ53 -> 6,075.00 | BF53: 3,375.00 | BX53: =(BF53+CQ53)*0.8 -> 2,700.00 | CQ53: =BF53*DI53/100 -> 0.00 | DI53: 0.00 | DY53: =(BF53+CQ53)*0.5 -> 1,687.50 | EO53: =(1*(AO53+DY53))*12 -> 93,150.00
A54: 18. | G54: Секретарь УЧ | Y54: 1 | AO54: 24,302.70 | BF54: 9,001.00 | BX54: 10,801.20 | CQ54: 4,500.50 | DI54: 50.00 | DY54: 6,750.75 | EO54: 372,641.40
A55: 19. | G55: Программист | Y55: 1 | AO55: 19,116.00 | BF55: 7,965.00 | BX55: =(BF55+CQ55)*0.6 -> 7,168.50 | CQ55: 3,982.50 | DI55: 50.00 | DY55: 5,973.75 | EO55: 301,077.00
A56: 20. | G56: Бухгалтер | Y56: 1 | AO56: 16,038.00 | BF56: 8,100.00 | BX56: 7,128.00 | CQ56: 810.00 | DI56: 10.00 | DY56: 4,455.00 | EO56: 245,916.00
A57: 21. | G57: Бухгалтер | Y57: 1 | AO57: 22,939.20 | BF57: 7,965.00 | BX57: 10,195.20 | CQ57: 4,779.00 | DI57: 60.00 | DY57: 6,372.00 | EO57: 351,734.40
A58: 22. | G58: Бухгалтер | Y58: 1 | AO58: 22,746.24 | BF58: 7,898.00 | BX58: 10,109.44 | CQ58: 4,738.80 | DI58: 60.00 | DY58: 6,318.40 | EO58: 348,775.68
A59: 23. | G59: Бухгалтер | Y59: 0.5 | AO59: 8,313.10 | BF59: 3,881.00 | BX59: 3,694.71 | CQ59: 737.39 | DI59: 19.00 | DY59: 2,309.20 | EO59: =(1*(AO59+DY59))*12 -> 127,467.56
A60: 24. | G60: Водитель | Y60: 1 | AO60: 19,094.40 | BF60: 7,072.00 | BX60: 8,486.40 | CQ60: 3,536.00 | DI60: 50.00 | DY60: 5,304.00 | EO60: 292,780.80
A61: 25. | G61: Гардеробщик | Y61: 1 | AO61: 13,584.46 | BF61: 6,186.00 | BX61: 6,037.54 | CQ61: 1,360.92 | DI61: 22.00 | DY61: 3,773.46 | EO61: 208,294.99
A62: 26. | G62: Сторож | Y62: 0.5 | AO62: 5,847.66 | BF62: 3,094.00 | BX62: 2,598.96 | CQ62: 154.70 | DI62: 5.00 | DY62: 1,624.35 | EO62: =(1*(AO62+DY62))*12 -> 89,664.12
A63: 27. | G63: Сторож | Y63: 2 | AO63: 12,039.30 | BF63: 6,370.00 | BX63: 5,350.80 | CQ63: 318.50 | DI63: 5.00 | DY63: 3,344.25 | EO63: 369,205.20
A64: 28. | G64: Сторож | Y64: 1 | AO64: 12,734.82 | BF64: 6,738.00 | BX64: 5,659.92 | CQ64: 336.90 | DI64: 5.00 | DY64: 3,537.45 | EO64: 195,267.24
A65: 28. | G65: Сторож | Y65: 1 | AO65: =BF65+BX65+CQ65 -> 13,560.75 | BF65: 6,125.00 | BX65: =(BF65+CQ65)*0.8 -> 6,027.00 | CQ65: =BF65*DI65/100 -> 1,408.75 | DI65: 23.00 | DY65: =(BF65+CQ65)*0.5 -> 3,766.88 | EO65: =(Y65*(AO65+DY65))*12 -> 207,931.50
A66: 29. | G66: Уборщик служ. помещ. | Y66: 1 | AO66: 13,584.46 | BF66: 6,186.00 | BX66: 6,037.54 | CQ66: 1,360.92 | DI66: 22.00 | DY66: 3,773.46 | EO66: 208,294.99
A67: 29. | G67: Уборщик произв. помещ. | Y67: 1 | AO67: 15,215.04 | BF67: 7,044.00 | BX67: 6,762.24 | CQ67: 1,408.80 | DI67: 20.00 | DY67: 4,226.40 | EO67: 233,297.28
A68: 30. | G68: Уборщик служ. помещ. | Y68: 3 | AO68: 13,947.66 | BF68: 6,738.00 | BX68: 6,198.96 | CQ68: 1,010.70 | DI68: 15.00 | DY68: 3,874.35 | EO68: 641,592.36
A69: 31. | G69: Уборщик служ. помещ. | Y69: 1 | AO69: 13,627.44 | BF69: 6,309.00 | BX69: 6,056.64 | CQ69: 1,261.80 | DI69: 20.00 | DY69: 3,785.40 | EO69: 208,954.08
A70: 32. | G70: Уборщик произв. помещ. | Y70: 1 | AO70: 13,560.75 | BF70: 6,125.00 | BX70: 6,027.00 | CQ70: 1,408.75 | DI70: 23.00 | DY70: 3,766.88 | EO70: =(1*(AO70+DY70))*12 -> 207,931.50
A71: 33. | G71: Дежурный по общежитию | Y71: 2 | AO71: 13,366.08 | BF71: 7,072.00 | BX71: 5,940.48 | CQ71: 353.60 | DI71: 5.00 | DY71: 3,712.80 | EO71: 409,893.12
A72: 34. | G72: Дежурный по общежитию | Y72: 2 | AO72: 12,150.81 | BF72: 6,429.00 | BX72: 5,400.36 | CQ72: 321.45 | DI72: 5.00 | DY72: 3,375.23 | EO72: 372,624.84
A73: 35. | G73: Повар | Y73: 1 | AO73: 13,972.77 | BF73: 7,393.00 | BX73: 6,210.12 | CQ73: 369.65 | DI73: 5.00 | DY73: 3,881.33 | EO73: 214,249.14
A74: 36. | G74: Повар | Y74: 0.5 | AO74: 6,853.77 | BF74: 3,311.00 | BX74: 3,046.12 | CQ74: 496.65 | DI74: 15.00 | DY74: 1,903.83 | EO74: =(1*(AO74+DY74))*12 -> 105,091.14
A75: 37. | G75: Кладовщик | Y75: 0.5 | AO75: 6,973.83 | BF75: 3,369.00 | BX75: 3,099.48 | CQ75: 505.35 | DI75: 15.00 | DY75: 1,937.18 | EO75: =(1*(AO75+DY75))*12 -> 106,932.06
A76: 38. | G76: Кладовщик | Y76: 1 | AO76: 13,759.20 | BF76: 6,370.00 | BX76: 6,115.20 | CQ76: 1,274.00 | DI76: 20.00 | DY76: 3,822.00 | EO76: 210,974.40
A77: 39. | G77: Комендант общежития | Y77: 1 | AO77: 15,495.48 | BF77: 6,622.00 | BX77: 6,886.88 | CQ77: 1,986.60 | DI77: 30.00 | DY77: 4,304.30 | EO77: 237,597.36
A78: 40. | G78: Мойщик посуды | Y78: 0.5 | AO78: =BF78+BX78+CQ78 -> 6,726.35 | BF78: 3,063.00 | BX78: =(BF78+CQ78)*0.8 -> 2,989.49 | CQ78: =BF78*DI78/100 -> 673.86 | DI78: 22.00 | DY78: =(BF78+CQ78)*0.5 -> 1,868.43 | EO78: =(1*(AO78+DY78))*12 -> 103,137.34
A79: 41. | G79: Рабочий по КО и РЗ | Y79: 1 | AO79: 17,531.10 | BF79: 6,493.00 | BX79: 7,791.60 | CQ79: 3,246.50 | DI79: 50.00 | DY79: 4,869.75 | EO79: 268,810.20
Y80: =SUM(Y49:AN79) -> 33 | AO80: =SUM(AO49:BE79) -> 447,001.00 | BF80: =SUM(BF49:BW79) -> 197,802.00 | BX80: =SUM(BX49:CP79) -> 197,339.61 | CQ80: =SUM(CQ49:DH79) -> 51,859.39 | DY80: =SUM(DY49:EN79) -> 124,830.70 | EO80: =SUM(EO49:FE79) -> 7,865,570.18
Y81: =Y32+Y36+Y43+Y48+Y80 -> 72.5 | AO81: =AO32+AO36+AO43+AO48+AO80 -> 1,321,325.90 | BF81: =BF32+BF36+BF43+BF48+BF80 -> 558,774.55 | BX81: =BX32+BX36+BX43+BX48+BX80 -> 580,334.18 | CQ81: =CQ32+CQ36+CQ43+CQ48+CQ80 -> 182,217.17 | DY81: =DY32+DY36+DY43+DY48+DY80 -> 370,495.86 | EO81: =EO32+EO36+EO43+EO48+EO80 -> 22,262,254.58
A82: Итого: | Y82: х | BF82: х | BX82: х | CQ82: х | DI82: х | DY82: х | EO82: =EO81 -> 22,262,254.58
A83: * Заполняется в соответствии с приказом Минфина России от 28.07.2010 № 81н "О требованиях к плану финансово-хозяйственной деятельности государственного (муниципального) учреждения" (в редакции приказа от 29.08.2016 № 142н)

Sheet 14
A2: 1.2. Расчеты (обоснования) выплат персоналу при направлении в служебные командировки
A4: № п/п | G4: Наименование расходов | AE4: Средний размер выплаты на одного работника в день, руб. | BD4: Количество работников, чел. | BT4: Количество дней | CJ4: Сумма, руб. (гр. 3 x гр. 4 x гр. 5)
A5: 1 | G5: 2 | AE5: 3 | BD5: 4 | BT5: 5 | CJ5: 6
A6: 1 | G6: Проезд в командировку | AE6: 2000 | BD6: 20 | BT6: 1 | CJ6: 40,000.00
G7: Итого: | AE7: х | BD7: х | BT7: х | CJ7: =SUM(CJ6) -> 40,000.00
A9: 1.3. Расчеты (обоснования) выплат персоналу по уходу за ребенком
A11: № п/п | G11: Наименование расходов | AE11: Численность работников, получающих пособие | AZ11: Количество выплат в год на одного работника | BR11: Размер выплаты (пособия) в месяц, руб. | CJ11: Сумма, руб. (гр. 3 x гр. 4 x гр. 5)
A12: 1 | G12: 2 | AE12: 3 | AZ12: 4 | BR12: 5 | CJ12: 6
A13: 1. | G13: Пособие по уходу за ребенком до 1,5 лет | AE13: 1 | AZ13: 10 | BR13: 6,514.23 | CJ13: =AE13*AZ13*BR13 -> 65,142.30
A14: 2. | G14: Пособие по уходу за ребенком до 1,5 лет | AE14: 1 | AZ14: 6 | BR14: 15,955.14 | CJ14: =AE14*AZ14*BR14 -> 95,730.84
G15: Итого: | AE15: х | AZ15: х | BR15: х | CJ15: =SUM(CJ13:CJ14) -> 160,873.14
A17: 1.4. Расчеты (обоснования) страховых взносов на обязательное страхование в Пенсионный фонд Российской Федерации, в Фонд социального страхования Российской Федерации, в Федеральный фонд обязательного медицинского страхования
A19: № п/п | G19: Наименование государственного внебюджетного фонда | BW19: Размер базы для начисления страховых взносов, руб. | CM19: Сумма взноса, руб.
A20: 1 | G20: 2 | BW20: 3 | CM20: 4
A21: 1 | H21: Страховые взносы в Пенсионный фонд Российской Федерации, всего | BW21: х
A22: 1.1 | H22: в том числе: | BW22: 21,519,990.00 | CM22: =BW22*22% -> 4,734,397.80
H23: по ставке 22,0%
A24: 1.2 | H24: по ставке 10,0% | BW24: 1,000,000.00 | CM24: =BW24*10% -> 100,000.00
A25: 1.3 | H25: с применением пониженных тарифов взносов в Пенсионный фонд Российской Федерации для отдельных категорий плательщиков
A26: 2 | H26: Страховые взносы в Фонд социального страхования Российской Федерации, всего | BW26: х
A27: 2.1 | H27: в том числе: | BW27: 21,110,540.00 | CM27: =BW27*2.9%-0.07 -> 612,205.59
H28: обязательное социальное страхование на случай временной нетрудоспособности и в связи с материнством по ставке 2,9%
A29: 2.2 | H29: с применением ставки взносов в Фонд социального страхования Российской Федерации по ставке 0,0%
A30: 2.3 | H30: обязательное социальное страхование от несчастных случаев на производстве и профессиональных заболеваний по ставке 0,2% | BW30: 22,519,990.00 | CM30: =BW30*0.2% -> 45,039.98
A31: 2.4 | H31: обязательное социальное страхование от несчастных случаев на производстве и профессиональных заболеваний по ставке 0,_%*
A32: 2.5 | H32: обязательное социальное страхование от несчастных случаев на производстве и профессиональных заболеваний по ставке 0,_%*
A33: 3 | H33: Страховые взносы в Федеральный фонд обязательного медицинского страхования, всего (по ставке 5,1%) | BW33: 22,519,990.00 | CM33: =BW33*5.1% -> 1,148,519.49
G34: Итого: | BW34: х | CM34: =SUM(CM22:DA33) -> 6,640,162.86
A36: _____*_Указываются страховые тарифы, дифференцированные по классам профессионального риска, установленные Федеральным законом от 22 декабря 2005 г. № 179-ФЗ "О страховых тарифах на обязательное социальное страхование от несчастных случаев на производстве и профессиональных заболеваний на 2006 год" (Собрание законодательства Российской Федерации, 2005, № 52, ст. 5592; 2015, № 51, ст. 7233).
A38: 2. Расчеты (обоснования) расходов на социальные и иные выплаты населению
A40: Код видов расходов | X40: 321
A42: Источник финансового обеспечения | AP42: 4 - Субсидия на выполнение гос. задания
A44: № п/п | H44: Наименование показателя | BD44: Размер одной выплаты, руб. | BT44: Количество выплат в год | CJ44: Общая сумма выплат, руб. (гр. 3 x гр. 4)
A45: 1 | H45: 2 | BD45: 3 | BT45: 4 | CJ45: 5
A46: 1. | H46: Пособие в размере среднемесячного заработка в связи с сокращением | BD46: 19,142.12 | BT46: 3 | CJ46: =BD46*BT46 -> 57,426.36
H47: Итого: | BD47: х | BT47: х | CJ47: =CJ46 -> 57,426.36
A49: Код видов расходов | X49: 112
A51: Источник финансового обеспечения | AP51: 5 - Субсидии на иные цели
A53: № п/п | H53: Наименование показателя | BD53: Размер одной выплаты, руб. | BT53: Количество выплат в год | CJ53: Общая сумма выплат, руб. (гр. 3 x гр. 4)
A54: 1 | H54: 2 | BD54: 3 | BT54: 4 | CJ54: 5
A55: 1. | H55: Выплаты персоналу при направлении в служебные командировки (сопровождение детей-сирот к месту отдыха и обратно) | BD55: 13,800.00 | BT55: 2 | CJ55: =BD55*BT55 -> 27,600.00
A56: 2. | H56: Оплата стоиомти проезда и провоза багажа к месту отдыха и обратно | BD56: 13,582.63 | BT56: 40 | CJ56: 543,305.00
H57: Итого: | BD57: х | BT57: х | CJ57: =CJ55+CJ56 -> 570,905.00
A59: Код видов расходов | X59: 321
A61: Источник финансового обеспечения | AP61: 5 - Субсидии на иные цели
A63: № п/п | H63: Наименование показателя | BD63: Размер одной выплаты, руб. | BT63: Количество выплат в год | CJ63: Общая сумма выплат, руб. (гр. 3 x гр. 4)
A64: 1 | H64: 2 | BD64: 3 | BT64: 4 | CJ64: 5
A65: 1. | H65: Компенсационные выплаты детям-сиротам | CJ65: 1,300,000.00
A66: 2. | H66: Компенсационные выплаты учащимся из категории ТЖС | CJ66: 200,000.00
A67: 3. | H67: Приобретение проездных билетов детям-сиротам к месту отдыха и оздоровления и обратно | CJ67: 206,080.00
H68: Итого: | BD68: х | BT68: х | CJ68: =CJ65+CJ66+CJ67 -> 1,706,080.00
A70: 3. Расчет (обоснование) расходов на уплату налогов, сборов и иных платежей
A72: Код видов расходов | X72: 321
A74: Источник финансового обеспечения | AP74: 4 - Субсидия на выполнение гос. задания
A76: № п/п | H76: Наименование расходов | BD76: Налоговая база, руб. | BT76: Ставка налога, % | CE76: Сумма исчисленного налога, подлежащего уплате, руб. (гр. 3 x гр. 4 / 100)
A77: 1 | H77: 2 | BD77: 3 | BT77: 4 | CE77: 5
A78: 1 | H78: Земельный налог (к.н. 51:28:0050001:23) | BD78: 71,338,940 | BT78: 1.5 | CE78: 1,070,084
A79: 2 | H79: Земельный налог (к.н. 51:28:0050001:1427) | BD79: 27,345,273 | BT79: 0.3 | CE79: 82,036
A80: 3 | H80: Налог на имущество | BT80: 2.2 | CE80: 1,873,000
H81: Итого: | BT81: х | CE81: =SUM(CE78:CE80) -> 3,025,120
A83: Код видов расходов | X83: 323
A85: Источник финансового обеспечения | AP85: 2 - Приносящая доход деятельность
A87: № п/п | H87: Наименование расходов | CE87: Сумма руб.
A88: 1 | H88: 2 | BD88: 3 | BT88: 4 | CE88: 5
A89: 1 | H89: Госпошлины при подаче исковых заявлений | CE89: 50,000.00
H90: Итого: | BT90: х | CE90: =SUM(CE89:CE89) -> 50,000.00
A92: 4. Расчет (обоснование) расходов на безвозмездные перечисления организациям
A94: Код видов расходов
A96: Источник финансового обеспечения
A98: № п/п | H98: Наименование показателя | BD98: Размер одной выплаты, руб. | BT98: Количество выплат в год | CJ98: Общая сумма выплат, руб. (гр. 3 x гр. 4)
A99: 1 | H99: 2 | BD99: 3 | BT99: 4 | CJ99: 5
H102: Итого: | BD102: х | BT102: х
A104: 5. Расчет (обоснование) прочих расходов (кроме расходов на закупку товаров, работ, услуг)
A106: Код видов расходов | X106: 340
A108: Источник финансового обеспечения | AP108: 5 - субсидии на иные цели
A110: № п/п | H110: Наименование показателя | BD110: Размер одной выплаты, руб. | BT110: Количество выплат в год | CJ110: Общая сумма выплат, руб. (гр. 3 x гр. 4)
A111: 1 | H111: 2 | BD111: 3 | BT111: 4 | CJ111: 5
A112: 1 | H112: Стипендия учащимся академическая (119 чел.) | BD112: 920 | BT112: 1428 | CJ112: =BD112*BT112 -> 1,313,760.00
A113: 2 | H113: Стипендия учащимся социальная (53 чел.) | BD113: 1380 | BT113: 636 | CJ113: =BD113*BT113 -> 877,680.00
A114: 3 | H114: Материальная помощь, поощрения | CJ114: 104,660.00
H115: Итого: | BD115: х | BT115: х | CJ115: =SUM(CJ112:CJ114) -> 2,296,100.00
A117: 6. Расчет (обоснование) расходов на закупку товаров, работ, услуг
A119: Код видов расходов | X119: 244
A121: Источник финансового обеспечения | AP121: 4 - Субсидия на выполнение гос. задания
A123: 6.1. Расчет (обоснование) расходов на оплату услуг связи
A125: № п/п | H125: Наименование расходов | AP125: Количество номеров | BF125: Количество платежей в год | BV125: Стоимость за единицу, руб. | CL125: Сумма, руб. (гр. 3 x гр. 4 x гр. 5)
A126: 1 | H126: 2 | AP126: 3 | BF126: 4 | BV126: 5 | CL126: 6
A127: 1 | H127: Услуги телефонной связи (местной, внутризоновой, междугородной связи) | AP127: 6 | BF127: 12 | BV127: 3721.33 | CL127: 44,656.00
A128: 2 | H128: Услуги почтовой связи | BF128: 12 | BV128: 3000 | CL128: 36,000.00
A129: 3 | H129: Услуги связи по передаче данных | AP129: 2 | BF129: 2 | BV129: 6500 | CL129: 13,000.00
A130: 4 | H130: Выделенный доступ в сети Интернет | AP130: 2 | BF130: 12 | BV130: 5487 | CL130: 65,844.00
A131: 5 | H131: Сотовая связь | AP131: 1 | BF131: 2 | BV131: 250 | CL131: 500.00
H132: Итого: | AP132: х | BF132: х | BV132: х | CL132: =SUM(CL127:CL131) -> 160,000.00
A134: 6.2. Расчет (обоснование) расходов на оплату транспортных услуг
A136: № п/п | H136: Наименование расходов | BD136: Количество услуг перевозки | BT136: Цена услуги перевозки, руб. | CJ136: Сумма, руб. (гр. 3 x гр. 4)
A137: 1 | H137: 2 | BD137: 3 | BT137: 4 | CJ137: 5
H140: Итого:
A142: 6.3. Расчет (обоснование) расходов на оплату коммунальных услуг
A144: № п/п | H144: Наименование показателя | AP144: Размер потребления ресурсов | BF144: Тариф (с учетом НДС), руб. | BV144: Индексация, % | CL144: Сумма, руб. (гр. 4 x гр. 5 x гр. 6)
A145: 1 | H145: 2 | AP145: 4 | BF145: 5 | BV145: 6 | CL145: 6
A146: 1 | H146: Теплоэнергия | AP146: 1736.315 | BF146: 3899.28 | CL146: 6,770,378
A147: 2 | H147: Холодное водоснабжение | AP147: 3416 | BF147: 26.2 | CL147: 89,499
A148: 3 | H148: Водоотведение | AP148: 3416 | BF148: 93.45 | CL148: 319,225
A149: 4 | H149: Электроэнегрия | AP149: 232388 | BF149: 5.75 | CL149: 1,336,233
H150: Итого: | AP150: х | BF150: х | BV150: х | CL150: =SUM(CL146:CL149) -> 8,515,335
A152: 6.4. Расчет (обоснование) расходов на оплату аренды имущества
A154: № п/п | H154: Наименование показателя | BD154: Количество | BT154: Ставка арендной платы | CJ154: Стоимость с учетом НДС, руб.
A155: 1 | H155: 2 | BD155: 4 | BT155: 5 | CJ155: 6
H158: Итого: | BD158: х | BT158: х | CJ158: х
A160: 6.5. Расчет (обоснование) расходов на оплату работ, услуг по содержанию имущества
A162: № п/п | H162: Наименование расходов | BD162: Объект | BT162: Количество работ (услуг) | CJ162: Стоимость работ (услуг), руб.
A163: 1 | H163: 2 | BD163: 3 | BT163: 4 | CJ163: 5
A164: 1 | H164: т/о оборудования учета и контроля теплоэнергии | BT164: 12 | CJ164: 25,200.00
A165: 2 | H165: т/о отопительной системы, в т.ч. на подготовку к зимнему сезону | BT165: 3 | CJ165: 66,699.00
A166: 3 | H166: Дератизация, дезинсекция | BT166: 12 | CJ166: 30,850.00
A167: 4 | H167: Проведение текущего ремонта недвижимого имущества | CJ167: 774,364.00
A168: 5 | H168: Содержание прилегающей территории | BT168: 3 | CJ168: 18,480.00
A169: 6 | H169: Вывоз ТБО | BT169: 12 | CJ169: 99,683.50
A170: 7 | H170: Размещение ТБО | BT170: 12 | CJ170: 15,327.30
A171: 8 | H171: Затраты на измерение сопротивления изоляции электропроводки (количество зданий) | BT171: 3 | CJ171: 105,000.00
A172: 9 | H172: Т/о и регламентно-профилактический ремонт пожарной сигнализации | BT172: 12 | CJ172: 96,000.00
A173: 10 | H173: Т/о и регламентно-профилактический ремонт систем охранно-тревожной сигнализации | BT173: 12 | CJ173: 15,864.00
A174: 11 | H174: Т/о системы видеонаблюдения | BT174: 12 | CJ174: 36,000.00
A175: 12 | H175: Т/о автотранспорта | BT175: 528 | CJ175: 101,376.00
A176: 13 | H176: Затраты на обязательное страхование гражданской ответственности владельцев транспортных средств | BT176: 2 | CJ176: 8,436.00
A177: 14 | H177: Ремонт автотранспорта | BT177: 1 | CJ177: 180,000.00
A178: 15 | H178: Ремонт бытовой техники | BT178: 4 | CJ178: 22,000.00
A179: 16 | H179: Обслуживание холодильного, технического оборудования | BT179: 10 | CJ179: 75,020.00
A180: 17 | H180: Поверка электросчетчиков, манометров, весового хозяйства | BT180: 1 | CJ180: 29,000.00
H181: Итого: | BD181: х | BT181: х | CJ181: =SUM(CJ164:CJ180) -> 1,699,299.80
A183: 6.6. Расчет (обоснование) расходов на оплату прочих работ, услуг
A185: № п/п | H185: Наименование расходов | BT185: Количество договоров | CJ185: Стоимость услуги, руб.
A186: 1 | H186: 2 | BT186: 3 | CJ186: 4
A187: 1 | H187: Поверка диэлектрических перчаток, заправка огнетушителей, испытание пожарных рукавов | BT187: 106 | CJ187: 45,720.00
A188: 2 | H188: Утилизация ртутьсодержащих отходов | BT188: 246 | CJ188: 9,348.00
A189: 3 | H189: Стирка и обработка постельных принадлежностей и прочего мягкого инвентаря | BT189: 50 | CJ189: 213,000.00
A190: 4 | H190: Заправка картриджей | BT190: 60 | CJ190: 36,000.00
A191: 5 | H191: Сопровождение программ | BT191: 3 | CJ191: 73,000.00
A192: 6 | H192: Медицинские осмотры работников | BT192: 75 | CJ192: 337,500.00
A193: 7 | H193: Предрейсовые, послерейсовые осмотры водителя | BT193: 528 | CJ193: 55,440.00
A194: 8 | H194: Услуги нотариуса | BT194: 6 | CJ194: 12,000.00
A195: 9 | H195: Семинары, курсы повышения квалификации | BT195: 12 | CJ195: 96,000.00
A196: 10 | H196: Исследование воды, смывов, пищевых продуктов | BT196: 15 | CJ196: 42,750.00
A197: 11 | H197: Подписка на периодические издания | BT197: 2 | CJ197: 212,573.64
A198: 12 | H198: Реклама, объявления в СМИ | BT198: 4 | CJ198: 32,000.00
H199: Итого: | BT199: х | CJ199: =SUM(CJ187:CJ198) -> 1,165,331.64
A201: 6.7. Расчет (обоснование) расходов на приобретение основных средств, материальных запасов
A203: № п/п | H203: Наименование расходов | BD203: Количество | BT203: Средняя стоимость, руб. | CJ203: Сумма, руб. (гр. 2 x гр. 3)
H204: 1 | BD204: 2 | BT204: 3 | CJ204: 4
A205: 1 | H205: ГСМ на общехозяйственные расходы | BD205: 3520 | BT205: 40 | CJ205: 140,800.00
A206: 2 | H206: Спецодежда, мягкий инвентарь (СИЗ) | BD206: 42 | BT206: 700 | CJ206: 29,400.00
A207: 3 | H207: Канцелярские принадлежности (на 1 чел) | BD207: 40 | BT207: 1773.8 | CJ207: 70,952.00
A208: 4 | H208: Моющие, дезинфицирующие средства (на 1м2) | BD208: 10533.7 | BT208: 10.44 | CJ208: 110,000.00
A209: 5 | H209: Перевязочные средства и медикаменты | BD209: 150 | BT209: 66.67 | CJ209: 10,000.00
A210: 6 | H210: Строительные материалы (на 1м2) | BD210: 10533.7 | BT210: 18.83 | CJ210: 198,359.20
H211: Итого: | BT211: х | CJ211: =SUM(CJ205:CJ210) -> 559,511.20
A213: Код видов расходов | X213: 244
A215: Источник финансового обеспечения | AP215: 5 - Субсидии на иные цели
A217: № п/п | H217: Наименование расходов | BD217: Объект | BT217: Количество работ (услуг) | CJ217: Стоимость работ (услуг), руб.
A218: 1 | H218: 2 | BD218: 3 | BT218: 4 | CJ218: 5
A219: 1 | H219: Ремонтные работы | BD219: Правая секция общежития на Курчатова, д. 24 | BT219: 1 | CJ219: 1,207,545.00
H220: Итого: | BT220: х | CJ220: =CJ219 -> 1,207,545.00
A222: Код видов расходов | X222: 323
A224: Источник финансового обеспечения | AP224: 5 - Субсидии на иные цели
A226: № п/п | H226: Наименование расходов | BD226: Объект | BT226: Количество работ (услуг) | CJ226: Стоимость работ (услуг), руб.
A227: 1 | H227: 2 | BD227: 3 | BT227: 4 | CJ227: 5
A228: 1 | H228: Приобретение мягкого инвентаря, продуктов питания для детей-сирот | CJ228: 1,620,208.00
A229: 2 | H229: Приобретение продуктов питания для учащихся из трудной жизненной ситуации | CJ229: 2,074,480.00
H230: Итого: | BT230: х | CJ230: =CJ228+CJ229 -> 3,694,688.00
A232: Код видов расходов | X232: 244
A234: Источник финансового обеспечения | AP234: 2 - Приносящая доход деятельность
A236: Расчет (обоснование) расходов на оплату коммунальных услуг
A238: № п/п | H238: Наименование показателя | AP238: Размер потребления ресурсов | BF238: Тариф (с учетом НДС), руб. | BV238: Индексация, % | CL238: Сумма, руб. (гр. 4 x гр. 5 x гр. 6)
A239: 1 | H239: 2 | AP239: 4 | BF239: 5 | BV239: 6 | CL239: 6
A240: 1 | H240: Теплоэнергия | AP240: 33.37 | BF240: 3899.28 | CL240: =AP240*BF240 -> 130,118.97
A241: 2 | H241: Электроэнегрия | AP241: 22638 | BF241: 5.75 | CL241: 130,167.99
H242: Итого: | AP242: х | BF242: х | BV242: х | CL242: =CL240+CL241 -> 260,286.96
A244: Расчет (обоснование) расходов на оплату работ, услуг по содержанию имущества
A246: № п/п | H246: Наименование расходов | BD246: Объект | BT246: Количество работ (услуг) | CJ246: Стоимость работ (услуг), руб.
A247: 1 | H247: 2 | BD247: 3 | BT247: 4 | CJ247: 5
A248: 1 | H248: Ремонтные работы недвижимого имущества (учебные кабинеты) | BT248: 2 | CJ248: 150,000.00
A249: 2 | H249: Прочие услуги | CJ249: 200,000.00
H250: Итого: | CJ250: =SUM(CJ248:CJ249) -> 350,000.00
A252: Расчет (обоснование) расходов на приобретение основных средств, материальных запасов
A254: № п/п | H254: Наименование расходов | BD254: Количество | BT254: Средняя стоимость, руб. | CJ254: Сумма, руб. (гр. 2 x гр. 3)
H255: 1 | BD255: 2 | BT255: 3 | CJ255: 4
A256: 1 | H256: Продукты питания | CJ256: 280,000.00
H257: Итого: | BT257: х | CJ257: =SUM(CJ256:CJ256) -> 280,000.00

Sheet 15
A1: Расчет объемов субсидии на выполнение государственного задания на 2017 год
E2: руб.
A3: Наименование затрат | B3: ед. изм. | C3: количество | D3: расчет | E3: сумма
A4: Затраты на оплату труда с начислениями на выплаты по оплате труда в том числе: | E4: =SUM(E5:E9) -> 29,418,452.36
A5: Заработная плата работникам | B5: руб. | C5: 64 | E5: 22,262,254.58
A6: материальная помощь педработникам | B6: руб. | C6: 25 | D6: 8622 | E6: 215,777.42
A7: материальная помощь АУП | B7: руб. | C7: 2 | D7: 20979 | E7: =C7*D7 -> 41,958.00
A8: Начисления на оплату труда | B8: руб. | E8: 6,801,036.00
A9: Иные выплаты | B9: руб. | E9: =40000+57426.36 -> 97,426.36
A10: Затраты на приобретение услуг связи в т.ч. | E10: =SUM(E11:E15) -> 160,000.00
A11: услуги телефонной связи (местной, внутризоновой, междугородней телефонной связи) | C11: 12 | D11: 3721 мин * 12 мес. | E11: 44,656.00
A12: услуги почтовой связи: | C12: 12 | D12: 3000 руб * 12 мес. | E12: 36,000.00
A13: услуги связи по передаче данных | C13: 2 | D13: 6500 руб.*2 мес. | E13: 13,000.00
A14: выделенный доступ в сети интернет | C14: 12 | D14: 5487 руб. * 12 мес. | E14: 65,844.00
A15: сотовая связь | C15: 1 | D15: 500 руб. * 1 мес. | E15: 500.00
A16: Затраты на приобретение транспортных услуг в т.ч. | E16: =SUM(E17:E19) -> 0.00
A17: доставка грузов
A18: найм транспортных средств
A19: оплата проезда работников в служебные командировки
A20: Затраты на приобретение коммунальных услуг в т.ч. | E20: =SUM(E21:E24) -> 8,515,335.00
A21: электроснабжение | B21: кВт/ч | C21: 232388 | D21: 232388 кВт/ч * 5,75 руб. | E21: 1,336,233.00
A22: теплоснабжение | B22: гКал | C22: 1736.315 | D22: 1736,315 гКал * 3899,28 руб. | E22: 6,770,378.00
A23: водоснабжение | B23: м3 | C23: 3416 | D23: 3416 м3 * 26,20 руб. | E23: 89,499.00
A24: водоотведение | B24: м3 | C24: 93.45 | D24: 3416 м3 * 93,45 руб. | E24: 319,225.00
A25: Затраты на содержание недвижимого имущества в т.ч. | E25: =SUM(E26:E35) -> 1,267,603.80
A26: Техническое обслуживание индивидуального теплового пункта | C26: 2100 | D26: 2100 руб * 12 мес. | E26: 25,200.00
A27: техническое обслуживание отопительной системы, в том числе на подготовку к зимнему сезону (кол-во зданий) | B27: шт. | C27: 3 | D27: 22233 руб * 3 шт. | E27: 66,699.00
A28: Дератизация, дезинсекция помещений | B28: м3 | D28: 5000 м 2*3,34 руб = 16700 руб 5000 м2 * 2,83 руб. = 14150 руб. | E28: 30,850.00
A29: проведение текущего ремонта недвижимого имущества | B29: м2 | C29: 533 | D29: 1648 руб * 533 м2 | E29: 774,364.00
A30: Содержание прилегающих территорий | B30: усл. | C30: 3 | D30: 6160 руб. * 3 | E30: 18,480.00
A31: вывоз твердых бытовых отходов | B31: куб.м | C31: 190 | D31: 190 куб.м * 524,65 | E31: 99,683.50
A32: размещение, переработка твердых бытовых отходов крупногабаритного мусора, захоронение ТБО и содержание контейнерных площадок | B32: куб.м | C32: 190 | D32: 190 куб.м * 80,67 | E32: 15,327.30
A33: затраты на измерение сопротивления изоляции электропроводки (количество зданий) | B33: шт. | C33: 3 | D33: 35000 руб * 3 | E33: 105,000.00
A34: Техническое облуживание и регламентно-профилактический ремонт пожарной сигнализации | B34: усл. | C34: 12 | D34: 8000 руб * 12 мес. | E34: 96,000.00
A35: Техническое облуживание видеонаблюдения | B35: усл. | C35: 12 | D35: 3000 руб * 12 мес. | E35: 36,000.00
A36: Затраты на содержание особо ценного движимого имущества в т.ч. | E36: =SUM(E37:E43) -> 431,696.00
A37: техническое обслуживание и регламентно-профилактический ремонт систем охранно-тревожной сигнализации | B37: мес. | C37: 12 | D37: 1322 руб * 12 мес. | E37: 15,864.00
A38: техническое обслуживание автотранспорта | B38: усл. | C38: 528 | D38: 192 руб * 528 пос. | E38: 101,376.00
A39: Затраты на обязательное страхование гражданской ответственности владельцев транспортных средств | B39: усл. | C39: 2 | D39: 4218 руб * 2 | E39: 8,436.00
A40: Ремонт автотранспорта | B40: усл. | C40: 1 | E40: 180,000.00
A41: Ремонт бытовой техники | B41: усл. | C41: 4 | D41: 5500 руб * 4 | E41: 22,000.00
A42: Обслуживание холодильного, технического оборудования | B42: усл. | C42: 10 | D42: 7502 руб * 10 | E42: 75,020.00
A43: Поверка электросчетчиков, маномаетров, весового хозяйства | B43: усл. | C43: 1 | E43: 29,000.00
A44: Затраты на прочие общехозяйственные нужды в т.ч. | E44: =SUM(E45:E63) -> 1,724,842.84
A45: Техническое обслуживание - поверка диэлектрических перчаток, заправка огнетушителей, испытание рукавов | B45: шт. | D45: 96 шт. * 445 руб = 42720 руб. 10 шт * 300 руб. = 3000 руб. | E45: 45,720.00
A46: утилизация ртутьсодержащих отходов | B46: шт. | C46: 246 | D46: 246 шт * 38 руб. | E46: 9,348.00
A47: стирка и обработка постельных принадлежностей и прочего мягкого инвентаря | B47: компл. | C47: 50 | D47: 50 шт. * 4260 руб. | E47: 213,000.00
A48: заправка картриджей | B48: шт. | C48: 60 | D48: 60 шт. * 600 руб | E48: 36,000.00
A49: сопровождение программ бухгалтерского учета | B49: шт. | D49: 12 мес * 5000 руб. = 60000 руб. (1С) 1 мес. * 6500 руб. = 6500 руб (КонтурЭкстерн) 1 мес. * 6500 руб.= 6500 руб.(СБИС) | E49: 73,000.00
A50: медицинские обследования работников | B50: чел. | C50: 75 | D50: 75 чел * 4500 руб. | E50: 337,500.00
A51: предрейсовые медосмотры водителя | B51: пос. | C51: 528 | D51: 528 пос. * 105 руб. | E51: 55,440.00
A52: услуги нотариуса | B52: шт. | C52: 6 | D52: 6 * 2000 руб. | E52: 12,000.00
A53: семинары, курсы повышения квалификации | B53: шт. | C53: 8000 | D53: 12 чел * 8000 руб. | E53: 96,000.00
A54: Исследование воды, смывов, пищевых продуктов | B54: усл. | C54: 15 | D54: 15 усл * 2850 руб. | E54: 42,750.00
A55: подписка на периодические издания | B55: шт. | C55: 2 | D55: 2 шт. * 106286,82 руб. | E55: 212,573.64
A56: реклама, объявления в СМИ | B56: шт. | C56: 4 | D56: 4 * 8000 руб | E56: 32,000.00
A57: ГСМ на общехозяйственные расходы | B57: л | C57: 3520 | D57: 3520 л * 40 руб | E57: 140,800.00
A58: спецодежда, мягкий иинвентарь | B58: шт. | C58: 42 | D58: 42 шт * 700 руб. | E58: 29,400.00
A59: приобретение столовых принадлежностей | B59: шт. | E59: 15,000.00
A60: канцелярские принадлежности | B60: шт. | E60: =50000+5952 -> 55,952.00
A61: моющие, дезинфицирующие средства | B61: шт. | E61: 110,000.00
A62: перевязочные средства и медикаменты | B62: шт. | E62: 10,000.00
A63: строительные материалы | B63: шт. | E63: 198,359.20
A64: Налог на имущество | E64: 1,873,000.00
A65: Земельный налог | E65: 1,152,120.00
A66: Учебные расходы (в соответствии с Законом Мурманской области от 19.12.2005 № 706-01-ЗМО) | D66: 3930 руб * 285 чел. | E66: 1,120,050.00
A67: Итого | E67: =E66+E44+E36+E25+E20+E16+E10+E4+E64+E65 -> 45,663,100.00
A69: И.о. директора | D69: О.И. Макашина
A70: Гл.бухгалтер | D70: О.А. Федорова
A71: Исполнитель Федорова О.А.
A72: (81532) 74763
